fUSD/lending_fUSD_20241119
["ID","MTS","AMOUNT","RATE_DAILY","PERIOD"]
[342666076,1732029056031,-110000.000001,0.00046,120]
[342666077,1732029056040,-37537.7439552,0.00046,120]
[342666078,1732029056050,-1000.0,0.00046,120]
[342666079,1732029056060,-5000.0,0.00046,60]
[342666080,1732029056070,-45000.01,0.00046,120]
[342666081,1732029056080,-20000.0,0.00046,120]
[342666082,1732029056089,-3423.54462665,0.00046,120]
[342666083,1732029056099,-298932.17099443,0.00046,30]
[342666084,1732029056108,-6273.99970623,0.00046,120]
[342666085,1732029056118,-25152.23685752,0.00046,120]
[342666086,1732029056128,-4261.51371792,0.00046,120]
[342666087,1732029056138,-21081.85284975,0.00046,120]
[342666088,1732029056147,-2300.0,0.00046,2]
[342666089,1732029056157,-12500.0,0.00046,120]
[342666090,1732029056166,-12500.0,0.00046,120]
[342666091,1732029056176,-250.0,0.00046,30]
[342666092,1732029056185,-20667.0,0.00046207,117]
[342666093,1732029056194,-1000.0,0.000463,30]
[342666094,1732029056203,-12500.0,0.00046375,120]
[342666095,1732029056212,-163136.6333929,0.000464,120]
[342666096,1732029056222,-11940.23931455,0.000465,120]
[342666097,1732029056232,-26632.576087,0.000465,30]
[342666098,1732029056243,-1670.59690762,0.00046575,70]
[342666099,1732029056253,-151.0,0.00046575,120]
[342666100,1732029056263,-1000.0,0.000466,30]
[342666101,1732029056271,-553.22591458,0.000466,2]
[342666102,1732029056281,-250.0,0.000466,2]
[342666103,1732029056290,-200.0,0.000466,2]
[342666104,1732029056300,-274.0,0.000466,2]
[342666105,1732029056310,-12500.0,0.0004675,120]
[342666106,1732029056319,-1718.85,0.00046849,27]
[342666107,1732029056328,-38999.999999,0.000469,2]
[342666108,1732029056337,-377.443306,0.00046968,2]
[342666109,1732029056347,-1504.8565446,0.00046968,2]
[342666110,1732029056357,-50000.0,0.00047,47]
[342666111,1732029056366,-2229.52162133,0.00047,120]
[342666112,1732029056379,-500.0,0.00047,30]
[342666113,1732029056389,-200.0,0.00047,108]
[342666114,1732029056398,-32205.7,0.00047,120]
[342666115,1732029056408,-1000.0,0.00047,120]
[342666116,1732029056417,-29600.0,0.00047,90]
[342666117,1732029056426,-50000.0,0.00047,32]
[342666118,1732029056436,-572.0,0.00047,120]
[342666119,1732029056445,-803.48,0.00047,120]
[342666120,1732029056455,-5154.06902834,0.00047,90]
[342666121,1732029056464,-80000.000001,0.00047,30]
[342666122,1732029056473,-503.96,0.00047,120]
[342666123,1732029056482,-168.40666869,0.00047,30]
[342666124,1732029056492,-671.0,0.00047,120]
[342666125,1732029056500,-12500.0,0.00047125,120]
[342666126,1732029056510,-151.0,0.00047151,120]
[342666127,1732029056519,-2128.76,0.00047251,79]
[342666128,1732029056531,-184.541,0.00047251,79]
[342666129,1732029056540,-436.17,0.00047354,2]
[342666130,1732029056551,-563.82,0.00047354,2]
[342666131,1732029056560,-793.08,0.00047354,2]
[342666132,1732029056570,-600.0,0.000474,120]
[342666133,1732029056580,-20000.0,0.000475,120]
[342666134,1732029056589,-50000.0,0.000475,33]
[342666135,1732029056599,-12500.0,0.000475,120]
[342666136,1732029056608,-3915.79023717,0.00047565,2]
[342666137,1732029056618,-1012.24173124,0.00047565,9]
[342666138,1732029056627,-14722.72329724,0.00047565,2]
[342666139,1732029056636,-5179.20303826,0.000476,2]
[342666140,1732029056646,-2330237.92627152,0.000476,30]
[342666141,1732029056745,-13763.44257325,0.000476,30]
[342666142,1732029056756,-92137.7469231,0.000476,30]
[342666143,1732029056767,-594.750028,0.000476,30]
[342666144,1732029056781,-998.82812981,0.000476,30]
[342666145,1732029056792,-2224.727917,0.000476,30]
[342666146,1732029056804,-1373.16161084,0.000476,30]
[342666147,1732029056847,-10554.28070708,0.000476,30]
[342666148,1732029056862,-4496.45211275,0.000476,30]
[342666149,1732029056874,-4014.65501141,0.000476,30]
[342666150,1732029056885,-1384.9356955,0.000476,30]
[342666151,1732029056896,-1388.63923202,0.000476,30]
[342666152,1732029056907,-961.55336738,0.000476,30]
[342666153,1732029056918,-3087.00000002,0.000476,30]
[342666154,1732029057101,-906.79,0.00021674,3]
[342666155,1732029057111,-158.524,0.00021684,2]
[342666156,1732029057121,-455.72165607,0.00022663,15]
[342666157,1732029057138,-187.35634393,0.00022663,15]
[342666158,1732029057148,-1458.56160603,0.00023044,3]
[342666159,1732029057159,-355.01839397,0.00023044,3]
[342666160,1732029057169,-5890.75190233,0.000399,15]
[342666161,1732029057179,-49070.3129104,0.000476,30]
[342666162,1732029057373,-150.0,0.00039729,2]
[342666163,1732029057382,-150.0,0.00039732,2]
[342666164,1732029057393,-150.0,0.00039744,2]
[342666165,1732029057403,-150.0,0.00039748,2]
[342666166,1732029057415,-150.0,0.00039758,2]
[342666167,1732029057425,-150.0,0.00039765,2]
[342666168,1732029057436,-150.0,0.00039774,2]
[342666169,1732029057447,-150.0,0.00039774,2]
[342666170,1732029057458,-150.0,0.00039782,2]
[342666171,1732029057468,-150.0,0.00039786,2]
[342666172,1732029057477,-150.0,0.00039793,2]
[342666173,1732029057487,-150.0,0.00039793,2]
[342666174,1732029057496,-150.0,0.00039805,2]
[342666175,1732029057505,-150.0,0.00039809,2]
[342666176,1732029057514,-150.0,0.00039818,2]
[342666177,1732029057523,-150.0,0.0003982,2]
[342666178,1732029057535,-150.0,0.00039828,2]
[342666179,1732029057543,-150.0,0.00039831,2]
[342666180,1732029057552,-150.0,0.00039834,2]
[342666181,1732029057561,-150.0,0.00039866,2]
[342666182,1732029057571,-150.0,0.00039879,2]
[342666183,1732029057580,-150.0,0.00039895,2]
[342666184,1732029057589,-150.0,0.00039896,2]
[342666185,1732029057599,-150.0,0.00039896,2]
[342666186,1732029057609,-150.0,0.00039919,2]
[342666187,1732029057618,-150.0,0.00039919,2]
[342666188,1732029057627,-150.0,0.00039922,2]
[342666189,1732029057637,-150.0,0.00039926,2]
[342666190,1732029057647,-150.0,0.00039931,2]
[342666191,1732029057656,-150.0,0.00039936,2]
[342666192,1732029057666,-150.0,0.00039939,2]
[342666193,1732029057675,-150.0,0.00039943,2]
[342666194,1732029057684,-150.0,0.00039947,2]
[342666195,1732029057694,-150.0,0.00039951,2]
[342666196,1732029057704,-28.61598283,0.00039961,2]
[342666197,1732029057717,-121.38401717,0.00039961,2]
[342666198,1732029057726,-150.0,0.00039979,2]
[342666199,1732029057736,-150.0,0.0003998,2]
[342666200,1732029057750,-150.0,0.0003998,2]
[342666201,1732029057759,-207380.99883085,0.000476,30]
[342666202,1732029057779,-150.0,0.00039896,2]
[342666203,1732029057793,-150.0,0.00039913,2]
[342666204,1732029057802,-39700.0,0.000476,30]
[342666205,1732029057867,-150.0,0.00039767,2]
[342666206,1732029057876,-150.0,0.00039792,2]
[342666207,1732029057886,-150.0,0.00039803,2]
[342666208,1732029057897,-150.0,0.00039853,2]
[342666209,1732029057906,-150.0,0.00039911,2]
[342666210,1732029057915,-150.0,0.00039913,2]
[342666211,1732029057924,-54221.0135,0.000476,30]
[342666212,1732029057936,-1203.85,0.000476,30]
[342666214,1732030025148,-479.3,8.963e-05,2]
[342666215,1732030025171,-1323.38332205,9e-05,2]
[342666216,1732030025192,-4510.99127309,9.336e-05,2]
[342666217,1732030027140,-11559.42872691,9.336e-05,2]
[342666218,1732030027167,-176.44,9.579e-05,2]
[342666219,1732030027189,-1912.7607,9.663e-05,2]
[342666220,1732030027210,-150.0,9.687e-05,2]
[342666221,1732030027233,-48175.6435,9.688e-05,2]
[342666222,1732030027254,-766.341,9.688e-05,2]
[342666223,1732030027275,-1229.94569913,9.762e-05,3]
[342666224,1732030027296,-1000.0,9.763e-05,2]
[342666225,1732030027316,-23930.7111,9.763e-05,2]
[342666226,1732030027337,-26263.66339117,9.763e-05,2]
[342666227,1732030036145,-15643.75000883,9.763e-05,2]
[342666228,1732030036168,-17597.0146,9.763e-05,2]
[342666229,1732030036189,-5784.8889,9.852e-05,2]
[342666230,1732030036210,-152.441585,9.863e-05,2]
[342666231,1732030036231,-178.970974,9.863e-05,2]
[342666232,1732030036252,-153.200793,9.863e-05,2]
[342666233,1732030036284,-187.161254,9.863e-05,2]
[342666234,1732030036308,-7009.1202,9.864e-05,2]
[342666235,1732030036329,-152.441585,9.875e-05,2]
[342666236,1732030036350,-250.0,9.89e-05,2]
[342666237,1732030036372,-1000.0,9.897e-05,2]
[342666238,1732030036394,-2500.0,9.897e-05,2]
[342666239,1732030036417,-1000.0,9.933e-05,2]
[342666240,1732030036439,-506.70447247,9.952e-05,2]
[342666241,1732030036461,-506.70447247,9.956e-05,2]
[342666242,1732030036482,-506.70447247,9.958e-05,2]
[342666243,1732030036504,-559.65425581,9.959e-05,2]
[342666244,1732030036528,-2238.61702328,9.962e-05,2]
[342666245,1732030036555,-559.65425581,9.963e-05,2]
[342666246,1732030036575,-152.441585,9.963e-05,2]
[342666247,1732030036599,-2238.61702328,9.964e-05,2]
[342666248,1732030036620,-506.70447247,9.971e-05,2]
[342666249,1732030036641,-152.441585,9.974e-05,2]
[342666250,1732030036662,-152.441585,9.975e-05,2]
[342666251,1732030036688,-2238.61702328,9.975e-05,2]
[342666252,1732030036710,-152.441585,9.976e-05,2]
[342666253,1732030036731,-152.441585,9.976e-05,2]
[342666254,1732030036753,-559.65425581,9.978e-05,2]
[342666255,1732030036774,-506.70447247,9.98e-05,2]
[342666256,1732030036794,-297182.43017973,9.98e-05,2]
[342666257,1732030040125,-25540.24870618,9.98e-05,2]
[342666258,1732030042111,-37271.99869917,9.98e-05,2]
[342666259,1732030057646,-13018.719,9.881e-05,2]
[342666260,1732030057668,-1000.0,9.89e-05,2]
[342666261,1732030057694,-200.0,9.9e-05,3]
[342666262,1732030057716,-500.0,9.973e-05,2]
[342666263,1732030057738,-54258.51560556,9.98e-05,2]
[342666264,1732030057759,-224821.82219743,9.98e-05,2]
[342666265,1732030057782,-559.65425581,9.981e-05,2]
[342666266,1732030057804,-12590.53622079,9.982e-05,2]
[342666267,1732030057836,-2238.61702328,9.991e-05,2]
[342666268,1732030057862,-690812.13569713,9.993e-05,2]
[342666269,1732030071416,-2500.0,9.89e-05,2]
[342666270,1732030071440,-10302.67585746,9.993e-05,2]
[342666271,1732030071464,-2238.61702328,9.995e-05,2]
[342666272,1732030071486,-152.441585,9.996e-05,2]
[342666273,1732030071509,-559.65425581,9.997e-05,2]
[342666274,1732030071531,-152.441585,9.997e-05,2]
[342666275,1732030071552,-152.441585,9.998e-05,2]
[342666276,1732030071573,-99999.999999,0.0001,2]
[342666277,1732030071595,-500.0,0.0001,3]
[342666278,1732030071616,-150.0,0.00010527,2]
[342666279,1732030071638,-255.0,0.00010656,2]
[342666280,1732030071660,-800.0,0.00010853,2]
[342666281,1732030071681,-800.0,0.00010853,2]
[342666282,1732030071708,-800.0,0.00010853,2]
[342666283,1732030071729,-800.0,0.00010853,2]
[342666284,1732030071751,-800.0,0.00010853,2]
[342666285,1732030071771,-800.0,0.00010896,2]
[342666286,1732030071792,-800.0,0.00010896,2]
[342666287,1732030071813,-800.0,0.00010896,2]
[342666288,1732030071834,-800.0,0.00010896,2]
[342666289,1732030071855,-800.0,0.00010896,2]
[342666290,1732030071877,-250.0,0.00010951,2]
[342666291,1732030071898,-874.63,0.00010959,2]
[342666292,1732030071920,-151.13,0.00010959,2]
[342666293,1732030071943,-282.43,0.00010959,2]
[342666294,1732030071966,-235.36,0.00010959,2]
[342666295,1732030071987,-196.14,0.00010959,2]
[342666296,1732030072009,-163.45,0.00010959,2]
[342666297,1732030072030,-817.25,0.00010959,2]
[342666298,1732030072051,-7447.9,0.00010959,2]
[342666299,1732030072071,-250.0,0.00010984,2]
[342666300,1732030072098,-377.31,0.00011057,2]
[342666301,1732030072120,-1000.0,0.00011174,2]
[342666302,1732030072143,-500.0,0.00011266,2]
[342666303,1732030072165,-14984.15,0.00011281,2]
[342666304,1732030072186,-216.52,0.00011281,2]
[342666305,1732030072210,-646.31,0.00011281,2]
[342666306,1732030072233,-150.0,0.00011349,2]
[342666307,1732030072254,-150.0,0.00011419,2]
[342666308,1732030072276,-250.0,0.0001143,2]
[342666309,1732030072298,-258.84,0.00011475,2]
[342666310,1732030072320,-500.0,0.00011506,2]
[342666311,1732030072344,-500.0,0.00011506,2]
[342666312,1732030072367,-1167.83,0.00011506,2]
[342666313,1732030072390,-2751.0,0.00011507,2]
[342666314,1732030072413,-23900.0,0.00011647,2]
[342666315,1732030072435,-150.0,0.00011652,2]
[342666316,1732030072457,-150.0,0.00011721,2]
[342666317,1732030072480,-152.83,0.00011776,2]
[342666318,1732030072502,-167.78,0.00011812,2]
[342666319,1732030072523,-150.0,0.00011955,2]
[342666320,1732030072543,-1247.15,0.00011972,2]
[342666321,1732030072567,-1450.0,0.00012,2]
[342666322,1732030072587,-600.0,0.00012,2]
[342666323,1732030072610,-162.27,0.00012024,2]
[342666324,1732030072631,-150.0,0.00012258,2]
[342666325,1732030072657,-1000.0,0.00012416,2]
[342666326,1732030072679,-150.0,0.00012561,2]
[342666327,1732030072704,-150.0,0.00012864,2]
[342666328,1732030072724,-4342.61,0.00012893,2]
[342666329,1732030072746,-150.0,0.00013168,2]
[342666330,1732030072766,-150.0,0.00013471,2]
[342666331,1732030072788,-1000.0,0.00013658,2]
[342666332,1732030072809,-200.0,0.00013699,2]
[342666333,1732030072829,-500.0,0.00013699,2]
[342666334,1732030072852,-152.83,0.00013739,2]
[342666335,1732030072872,-150.0,0.00013774,2]
[342666336,1732030072894,-1500.0,0.00014,2]
[342666337,1732030072914,-150.0,0.00014077,2]
[342666338,1732030072935,-150.0,0.0001438,2]
[342666339,1732030072958,-200.0,0.00014677,2]
[342666340,1732030072979,-150.0,0.00014683,2]
[342666341,1732030073000,-1000.0,0.00014899,2]
[342666342,1732030073021,-150.0,0.00014987,2]
[342666343,1732030073041,-9963.0,0.00015,2]
[342666344,1732030073063,-300.0,0.00015068,2]
[342666345,1732030073087,-150.0,0.0001529,2]
[342666346,1732030073108,-305.31,0.00015342,2]
[342666347,1732030073130,-394.67,0.00015342,2]
[342666348,1732030073152,-150.0,0.00015593,2]
[342666349,1732030073173,-152.83,0.00015702,2]
[342666350,1732030073196,-150.0,0.00015896,2]
[342666351,1732030073217,-1550.0,0.00016,2]
[342666352,1732030073238,-6058.57,0.00016116,2]
[342666353,1732030073260,-150.0,0.00016199,2]
[342666354,1732030073280,-4000.0,0.00016438,2]
[342666355,1732030073301,-300.0,0.00016438,2]
[342666356,1732030073322,-150.0,0.00016502,2]
[342666357,1732030073345,-311.56,0.00016658,30]
[342666358,1732030073367,-3746.0,0.0001676,2]
[342666359,1732030073389,-5884.0,0.0001676,2]
[342666360,1732030073412,-228.744,0.0001676,2]
[342666361,1732030073434,-793.574,0.0001676,2]
[342666362,1732030073457,-150.0,0.00016805,2]
[342666363,1732030073478,-500.0,0.00016816,2]
[342666364,1732030073499,-150.0,0.00017109,2]
[342666365,1732030073522,-152.83,0.00017664,2]
[342666366,1732030073543,-500.0,0.00017899,2]
[342666367,1732030073565,-1600.0,0.00018,2]
[342666368,1732030073587,-311.56,0.00019242,30]
[342666369,1732030073608,-1650.0,0.0002,2]
[342666370,1732030073629,-5000.0,0.0002036,2]
[342666371,1732030073653,-500.0,0.00020459,2]
[342666372,1732030073674,-500.0,0.0002046,2]
[342666373,1732030073698,-500.0,0.0002046,2]
[342666374,1732030073720,-500.0,0.0002046,2]
[342666375,1732030073742,-500.0,0.0002046,2]
[342666376,1732030073763,-500.0,0.0002046,2]
[342666377,1732030073785,-500.0,0.0002046,2]
[342666378,1732030073806,-500.0,0.0002046,2]
[342666379,1732030073828,-500.0,0.0002046,2]
[342666380,1732030073849,-500.0,0.0002046,2]
[342666381,1732030073870,-500.0,0.0002046,2]
[342666382,1732030073891,-500.0,0.0002046,2]
[342666383,1732030073912,-500.0,0.0002046,2]
[342666384,1732030073934,-500.0,0.0002046,2]
[342666385,1732030073957,-500.0,0.0002046,2]
[342666386,1732030073978,-500.0,0.0002046,2]
[342666387,1732030074001,-500.0,0.0002046,2]
[342666388,1732030074023,-500.0,0.0002046,2]
[342666389,1732030074044,-500.0,0.0002046,2]
[342666390,1732030074065,-500.0,0.0002046,2]
[342666391,1732030074090,-500.0,0.0002046,2]
[342666392,1732030074111,-500.0,0.0002046,2]
[342666393,1732030074132,-500.0,0.0002046,2]
[342666394,1732030074156,-500.0,0.0002046,2]
[342666395,1732030074178,-500.0,0.0002046,2]
[342666396,1732030074203,-500.0,0.0002046,2]
[342666397,1732030074225,-500.0,0.0002046,2]
[342666398,1732030074248,-500.0,0.0002046,2]
[342666399,1732030074270,-500.0,0.0002046,2]
[342666400,1732030074291,-500.0,0.0002046,2]
[342666401,1732030074312,-500.0,0.0002046,2]
[342666402,1732030074334,-500.0,0.0002046,2]
[342666403,1732030074355,-500.0,0.0002046,2]
[342666404,1732030074376,-500.0,0.0002046,2]
[342666405,1732030074405,-500.0,0.0002046,2]
[342666406,1732030074426,-500.0,0.0002046,2]
[342666407,1732030074447,-500.0,0.0002046,2]
[342666408,1732030074468,-500.0,0.0002046,2]
[342666409,1732030074489,-500.0,0.0002046,2]
[342666410,1732030074510,-500.0,0.0002046,2]
[342666411,1732030074532,-500.0,0.0002046,2]
[342666412,1732030074554,-500.0,0.0002046,2]
[342666413,1732030074575,-500.0,0.0002046,2]
[342666414,1732030074597,-500.0,0.0002046,2]
[342666415,1732030074618,-500.0,0.0002046,2]
[342666416,1732030074639,-500.0,0.0002046,2]
[342666417,1732030074661,-500.0,0.0002046,2]
[342666418,1732030074682,-500.0,0.0002046,2]
[342666419,1732030074706,-500.0,0.0002046,2]
[342666420,1732030074876,-500.0,0.0002046,2]
[342666421,1732030074898,-500.0,0.0002046,2]
[342666422,1732030074919,-500.0,0.0002046,2]
[342666423,1732030074940,-500.0,0.0002046,2]
[342666424,1732030074965,-500.0,0.0002046,2]
[342666425,1732030074987,-500.0,0.0002046,2]
[342666426,1732030075008,-500.0,0.0002046,2]
[342666427,1732030075036,-500.0,0.0002046,2]
[342666428,1732030075061,-500.0,0.0002046,2]
[342666429,1732030075086,-500.0,0.0002046,2]
[342666430,1732030075108,-500.0,0.0002046,2]
[342666431,1732030075132,-500.0,0.0002046,2]
[342666432,1732030075154,-500.0,0.0002046,2]
[342666433,1732030075178,-500.0,0.0002046,2]
[342666434,1732030075206,-500.0,0.0002046,2]
[342666435,1732030075229,-500.0,0.0002046,2]
[342666436,1732030075253,-500.0,0.0002046,2]
[342666437,1732030075275,-500.0,0.0002046,2]
[342666438,1732030075299,-500.0,0.0002046,2]
[342666439,1732030075321,-305.31,0.00021745,2]
[342666440,1732030075343,-394.67,0.00021745,2]
[342666441,1732030075367,-1167.83,0.00021799,2]
[342666442,1732030075389,-111634.9549,0.000218,2]
[342666443,1732030075411,-311.56,0.00021826,30]
[342666444,1732030075433,-1700.0,0.00022,2]
[342666445,1732030075457,-1000.0,0.00022863,2]
[342666446,1732030075479,-643.29,0.00023622,15]
[342666447,1732030075505,-1750.0,0.00024,2]
[342666448,1732030075527,-311.56,0.0002441,30]
[342666449,1732030075550,-1000.0,0.00024658,2]
[342666450,1732030075571,-150.0,0.00025,2]
[342666451,1732030075592,-9804.77,0.00025128,2]
[342666452,1732030075614,-1553.389,0.00025719,11]
[342666453,1732030075635,-183.941,0.00025719,11]
[342666454,1732030075658,-1800.0,0.00026,2]
[342666455,1732030075680,-311.56,0.00026994,30]
[342666456,1732030075704,-3422.93,0.00027397,10]
[342666457,1732030075725,-6527.29,0.00027397,10]
[342666458,1732030075746,-1850.0,0.00028,2]
[342666459,1732030075768,-305.31,0.00028147,2]
[342666460,1732030075790,-394.67,0.00028147,2]
[342666461,1732030075811,-311.56,0.00029578,30]
[342666462,1732030075832,-1900.0,0.0003,2]
[342666463,1732030075855,-1641.00357414,0.0003049,2]
[342666464,1732030075878,-176.44,0.00031085,2]
[342666465,1732030075900,-1000.0,0.000315,2]
[342666466,1732030075921,-1950.0,0.00032,2]
[342666467,1732030075950,-3000.0,0.000321,2]
[342666468,1732030075974,-311.56,0.00032162,30]
[342666469,1732030075996,-572.0,0.00032433,5]
[342666470,1732030076019,-500.0,0.00032539,7]
[342666471,1732030076040,-2007.460395,0.000328,30]
[342666472,1732030076062,-2676.61386,0.00033,30]
[342666473,1732030076086,-3345.767326,0.000335,30]
[342666474,1732030076108,-4014.920791,0.000338,30]
[342666475,1732030076130,-2000.0,0.00034,2]
[342666476,1732030076155,-55567.53721454,0.00034,120]
[342666477,1732030076179,-4014.920791,0.000342,30]
[342666478,1732030076203,-4684.074256,0.000345,30]
[342666479,1732030076225,-305.31,0.00034549,2]
[342666480,1732030076249,-394.67,0.00034549,2]
[342666481,1732030076273,-311.56,0.00034746,120]
[342666482,1732030076295,-3000.0,0.000348,2]
[342666483,1732030076316,-4014.920791,0.000348,30]
[342666484,1732030076342,-50000.0,0.00035,35]
[342666485,1732030076364,-965.67,0.00035616,120]
[342666486,1732030076388,-700.0,0.000359,13]
[342666487,1732030076411,-500.0,0.00035916,2]
[342666488,1732030076434,-1167.83,0.00035916,2]
[342666489,1732030076458,-2999.0,0.00035917,120]
[342666490,1732030076480,-2999.0,0.00035917,120]
[342666491,1732030076510,-2999.0,0.00035917,120]
[342666492,1732030076536,-2999.0,0.00035917,120]
[342666493,1732030076560,-2999.0,0.00035917,120]
[342666494,1732030076582,-2999.0,0.00035917,120]
[342666495,1732030076604,-2999.0,0.00035917,120]
[342666496,1732030076626,-2999.0,0.00035917,120]
[342666497,1732030076648,-2999.0,0.00035917,120]
[342666498,1732030076670,-2999.0,0.00035917,120]
[342666499,1732030076696,-2999.0,0.00035917,120]
[342666500,1732030076719,-2999.0,0.00035917,120]
[342666501,1732030076741,-2999.0,0.00035917,120]
[342666502,1732030076764,-2999.0,0.00035917,120]
[342666503,1732030076786,-2999.0,0.00035917,120]
[342666504,1732030076808,-2999.0,0.00035917,120]
[342666505,1732030076831,-2016.0,0.00035917,120]
[342666506,1732030076856,-50000.0,0.00036,36]
[342666507,1732030076879,-2050.0,0.00036,2]
[342666508,1732030076901,-1625.92268986,0.00036271,2]
[342666509,1732030076924,-150.0,0.00036815,2]
[342666510,1732030076951,-50000.0,0.00037,37]
[342666511,1732030076974,-311.56,0.0003733,120]
[342666512,1732030076997,-3000.0,0.000375,2]
[342666513,1732030077029,-50000.0,0.00038,38]
[342666514,1732030077052,-2100.0,0.00038,2]
[342666515,1732030077079,-50000.0,0.00039,39]
[342666516,1732030077103,-660.44813723,0.00039889,45]
[342666517,1732030077128,-660.44813723,0.00039889,45]
[342666518,1732030077162,-729.46388047,0.00039907,45]
[342666519,1732030077188,-729.46388047,0.0003991,45]
[342666520,1732030077214,-311.56,0.00039914,120]
[342666521,1732030077238,-2917.85552183,0.00039917,45]
[342666522,1732030077262,-2917.85552183,0.00039919,45]
[342666523,1732030077286,-660.44813723,0.00039932,45]
[342666524,1732030077310,-2917.85552183,0.00039937,45]
[342666525,1732030077336,-500.0,0.00039939,2]
[342666526,1732030077358,-500.0,0.00039939,2]
[342666527,1732030077380,-500.0,0.00039939,2]
[342666528,1732030077403,-500.0,0.00039939,2]
[342666529,1732030077426,-500.0,0.00039939,2]
[342666530,1732030077451,-500.0,0.00039939,2]
[342666531,1732030077473,-500.0,0.00039939,2]
[342666532,1732030077495,-500.0,0.00039939,2]
[342666533,1732030077518,-500.0,0.00039939,2]
[342666534,1732030077542,-500.0,0.00039939,2]
[342666535,1732030077564,-500.0,0.00039939,2]
[342666536,1732030077589,-500.0,0.00039939,2]
[342666537,1732030077612,-500.0,0.00039939,2]
[342666538,1732030077634,-500.0,0.00039939,2]
[342666539,1732030077659,-500.0,0.00039939,2]
[342666540,1732030077681,-500.0,0.00039939,2]
[342666541,1732030077706,-500.0,0.00039939,2]
[342666542,1732030077729,-500.0,0.00039939,2]
[342666543,1732030077752,-500.0,0.00039939,2]
[342666544,1732030077779,-500.0,0.00039939,2]
[342666545,1732030077803,-500.0,0.00039939,2]
[342666546,1732030077824,-500.0,0.00039939,2]
[342666547,1732030077848,-500.0,0.00039939,2]
[342666548,1732030077870,-500.0,0.00039939,2]
[342666549,1732030077892,-500.0,0.00039939,2]
[342666550,1732030077914,-500.0,0.00039939,2]
[342666551,1732030077938,-500.0,0.00039939,2]
[342666552,1732030077962,-500.0,0.00039939,2]
[342666553,1732030077985,-500.0,0.00039939,2]
[342666554,1732030078008,-500.0,0.00039939,2]
[342666555,1732030078030,-500.0,0.00039939,2]
[342666556,1732030078053,-500.0,0.00039939,2]
[342666557,1732030078076,-500.0,0.00039939,2]
[342666558,1732030078103,-500.0,0.00039939,2]
[342666559,1732030078129,-500.0,0.00039939,2]
[342666560,1732030078153,-500.0,0.00039939,2]
[342666561,1732030078179,-500.0,0.00039939,2]
[342666562,1732030078204,-500.0,0.00039939,2]
[342666563,1732030078228,-500.0,0.00039939,2]
[342666564,1732030078253,-500.0,0.00039939,2]
[342666565,1732030078276,-500.0,0.00039939,2]
[342666566,1732030078299,-500.0,0.00039939,2]
[342666567,1732030078322,-500.0,0.00039939,2]
[342666568,1732030078344,-500.0,0.00039939,2]
[342666569,1732030078367,-500.0,0.00039939,2]
[342666570,1732030078390,-500.0,0.00039939,2]
[342666571,1732030078415,-500.0,0.00039939,2]
[342666572,1732030078438,-500.0,0.00039939,2]
[342666573,1732030078463,-500.0,0.00039939,2]
[342666574,1732030078485,-500.0,0.00039939,2]
[342666575,1732030078507,-500.0,0.00039939,2]
[342666576,1732030078529,-500.0,0.00039939,2]